[Event "Metz op 31th"]
[Site "Metz"]
[Date "2013.07.24"]
[Round "7"]
[White "Shchekachev, Andrei"]
[Black "Sanikidze, Tornike"]
[Result "1/2-1/2"]
[ECO "D37"]
[WhiteElo "2520"]
[BlackElo "2559"]
[Annotator "Metz Alekhine/Primel,D"]
[PlyCount "141"]
[EventDate "2013.04.20"]
[EventType "swiss"]
[EventRounds "9"]
[EventCountry "FRA"]
[SourceTitle "EXT 2016"]
[Source "ChessBase"]
[SourceDate "2015.10.08"]
[SourceVersion "1"]
[SourceVersionDate "2015.10.08"]
[SourceQuality "1"]
[TimeControl "40/5400:1800+30"]
[WhiteClock "1:30:00"]
[BlackClock "1:30:00"]

1. Nf3 Nf6 2. c4 e6 3. Nc3 d5 4. d4 Be7 5. Bf4 c5 (5... O-O 6. a3 (6. e3 b6 (
6... Nbd7 7. Be2 dxc4 8. O-O c5 (8... Nb6 9. e4 c5 10. dxc5 Bxc5) 9. dxc5 Nxc5
10. Bxc4 a6 11. Ne5 Ncd7 12. Be2 Nxe5 13. Qxd8 Rxd8 14. Bxe5 $14 {Wojtaszek,R 
(2706)-Mista,A (2587) POL-ch Warsaw 2012 (2) 1-0}) 7. cxd5 Nxd5 8. Nxd5 Qxd5 9.
Bd3 Qa5+ $1 10. Ke2 Ba6 11. a3 c5 $11) 6... b6 7. e3 c5 (7... Bb7) 8. Qc2 cxd4
9. Nxd4 Bb7 10. Rd1 Nbd7 {Andreikin,D (2716)-Kramnik,V (2784) FIDE World Cup
2013 (7.2) 1/2} (10... Qc8 11. Ndb5 Nbd7 12. Bd6 {Paunovic})) 6. dxc5 Bxc5 7.
e3 Nc6 8. a3 {[%cal Gb2b4]} (8. Qc2) 8... O-O 9. Qc2 (9. Be2 dxc4 {Les Blancs
veulent éviter cette perte de temps et il vont jouer une série de coups
souples dans ce but}) (9. Rc1) 9... Qa5 10. Rd1 (10. O-O-O $5 {[%cal Gb2b4]}
Be7 11. g4 $13) (10. Nd2 Be7 11. Bg3 (11. Rd1)) 10... Be7 11. Be2 (11. Nd2)
11... Ne4 (11... dxc4 {La partie de référence} 12. Bxc4 Nh5 {Kramnik,V (2759)
-Carlsen,M (2772) Dortmund SuperGM 2009 (8) 1-0} (12... e5)) 12. cxd5 Nxc3 {
[%csl Ra3]} 13. bxc3 (13. Qxc3) 13... exd5 14. O-O Be6 {[%csl Ra3]} (14... Qxa3
$143 15. Rxd5) (14... Bf6) 15. Rb1 (15. a4 {Il y a davantage de parties avec
ce coup a4} Bf6 {Mamedyarov,S (2646)-Graf,A (2605) ESP-chT Honor Gp2 49th 2005
(4) 1/2-1/2}) 15... Qxa3 16. Ra1 $146 (16. Rxb7 Rfc8 {Miles,A (2610)-Van der
Sterren,P (2475) Hoogovens Wijk aan Zee 1984 (7) 1/2-1/2}) 16... Qc5 17. Rfb1
$44 {[%csl Rb7]} Nd8 18. Be5 {[%cal Ge5g7,Ge5d4,Ge5c3]} Qc8 {La position Noire
est solide mais un peu passive} 19. Bd3 {[%cal Gd3h7,Ge5g7]} g6 20. Nd4 Nc6 $1
21. Nxc6 Qxc6 (21... bxc6 22. c4 dxc4 23. Bxc4 Bd5) 22. Qb3 b6 23. Bb5 Qc5 24.
Qa4 Bd6 25. Bf6 $1 {[%cal Gh2h4,Gh4h5,Ga4h4]} Qc7 $1 {[%cal Gd6e5] Le Bf6
devient trop actif et il vaut mieux l'échanger} 26. h3 (26. h4 Be5) 26... Bh2+
{Un coup intermédiaire pour placer le K sur une case moins bonne} 27. Kh1 Be5
28. Bxe5 Qxe5 29. Ba6 {[%csl Gc8]} Bc8 30. Qd4 $1 Qf5 (30... Qxd4 31. cxd4 Bxa6
32. Rxa6 {[%csl Ra7,Ra8]} Rfc8 33. Rb5 $132 {[%cal Gh1h2,Gh2g3,Gg3f4,Gf4e5]})
31. Rb2 Bxa6 32. Rxa6 Rfc8 {[%cal Gc8c4]} 33. Ra4 Rc6 34. Kg1 Qe6 35. Ra6 Rc4
36. Qd2 Qc6 37. Rb3 {[%cal Gb3c3,Gb3a3] Malgré un P de plus, il n'est pas
facile pour les Noirs de progresser dans cette finale de pièces lourdes} h5 $1
{Un coup qui a été utile dans la finale de R intervenue dans la partie.} 38.
Rba3 Qb7 39. Qa2 Kg7 40. Rxa7 Rxa7 41. Rxa7 Qc6 42. Qb2 Rxc3 {[%cal Gb2g7]
Gagne un P mais le clouage est assez pénible} 43. Ra6 Qc7 44. g3 d4 $1 45.
Qxb6 (45. exd4 Rc1+ 46. Kh2 Rc2) 45... Qxb6 46. Rxb6 dxe3 47. fxe3 Rxe3 48. Kf2
{La finale de R avec 03 P contre 2 sur la même aile est très difficile à
gagner mais les Noirs ne risquent rien à tenter leur chance} Re6 49. Rb5 Kf6
50. h4 $1 {Très souvent le meilleur moyen dans ce genre de structure de
limiter les chances de gain de la majorité adverse.} Re5 51. Rb7 Ke6 52. Kf3
Ra5 53. Rb6+ Kf5 54. Rb4 (54. Rb7 Ra3+ 55. Kg2 f6 56. Rb5+) 54... Ra3+ 55. Kf2
f6 56. Rf4+ Ke5 57. Rb4 Rd3 58. Ra4 Rd4 59. Ra6 Kf5 60. Kf3 (60. Ra5+ $2 Kg4 {
[%cal Gd4d2]}) 60... Rd3+ 61. Kf2 {La feuille du géorgien mentionne un = mais
pas celle du français et j'ignore s'il s'agit réellement d'une proposition
de nulle.} g5 62. hxg5 {Illustrant l'intérêt d'avoir joué h4 car les
échanges favorisent les chances d'annuler} fxg5 {[%cal Gf5g4]} 63. Ra4 Rb3 64.
Rc4 Rb2+ 65. Kf3 g4+ {Gagne un tempo pour fixer la faiblesse "g3" mais en
contrepartie, la majorité commence à manquer de souplesse.} 66. Ke3 Rb3+ 67.
Kf2 Kg5 68. Ra4 (68. Rc5+) 68... Rb2+ 69. Ke3 Rb3+ 70. Kf2 Rf3+ {Evite la
répétition de coups mais la R Noire est trop proche du K Blanc pour avoir
des menaces réelles.} 71. Kg2 1/2-1/2

[Event "Sautron op 15th"]
[Site "Sautron"]
[Date "2015.10.24"]
[Round "8.4"]
[White "Colin, Vincent"]
[Black "Koziak, Vitali"]
[Result "1/2-1/2"]
[ECO "D37"]
[WhiteElo "2399"]
[BlackElo "2472"]
[Annotator "RR"]
[PlyCount "68"]
[EventDate "2015.10.24"]
[EventType "swiss"]
[EventRounds "9"]
[EventCountry "FRA"]
[SourceTitle "CBM 169 Extra"]
[Source "ChessBase"]
[SourceDate "2015.12.18"]
[SourceVersion "1"]
[SourceVersionDate "2015.12.18"]
[SourceQuality "1"]
[TimeControl "40/5400+30:1800+30"]
[WhiteClock "0:01:04"]
[BlackClock "0:01:02"]

1. d4 {[%emt 0:00:00]} d5 {[%emt 0:00:00]} 2. c4 {[%emt 0:00:00]} e6 {[%emt 0:
00:13]} 3. Nf3 {[%emt 0:01:00]} Nf6 {[%emt 0:00:06]} 4. Nc3 {[%emt 0:00:09]}
Be7 {[%emt 0:00:26]} 5. Bf4 {[%emt 0:02:10]} O-O {[%emt 0:00:13]} 6. e3 {
[%emt 0:00:08]} Nbd7 {[%emt 0:00:30]} (6... c6 $143 7. Qc2 Nbd7 (7... Nh5 $6 8.
Bd3 (8. Be5) 8... Nxf4 9. Bxh7+ Kh8 10. exf4 g6 11. Bxg6 fxg6 12. Ne5 $36) 8.
h3 a6 9. Rd1 h6 (9... b5 10. c5 $14 a5 11. Bd3 b4 12. Na4 Ba6 13. Bxa6 Rxa6 14.
O-O Qc8 15. Ne1 Bd8 16. Nd3 Bc7 17. a3 bxa3 18. bxa3 Re8 19. Bxc7 Qxc7 20. Rb1
e5 21. Rb6 $36 {Kramnik,V (2715)-Zude,A (2430) Bundesliga 9495 1994 [1] 1-0})
10. a3 dxc4 11. Bxc4 Nd5 12. O-O Nxf4 13. exf4 Qc7 14. Ne5 Nf6 15. Ba2 {
[%csl Rg8][%cal Ga2b1,Ge5g4,Gg4f6]} Bd7 16. Bb1 Be8 17. d5 $40 {[%csl Rf6,Rg8]
[%cal Gc3d5,Gc2c7];Kramnik,V (2590)-Lputian,S (2560) EU-chT (Men) 10th 1992 (6.
3) 1-0}) 7. cxd5 $5 {[%emt 0:09:11]} (7. c5) (7. Qc2 {[%cal Ga1d1]}) 7... Nxd5
{[%emt 0:03:52]} 8. Bg3 {[%emt 0:01:30]} (8. Nxd5 exd5 9. Bd3 c5 10. O-O b6 11.
dxc5 bxc5 12. e4 d4 13. Rc1 Nb6 14. Ne5 Bb7 15. Qg4 Qc8 16. Qxc8 Rfxc8 17. Nc4
Nxc4 18. Bxc4 a5 19. f3 a4 20. Kf2 Ba6 21. Ke2 Rc6 22. Kd3 Rb6 23. Rf2 Kf8 24.
Bxa6 Raxa6 25. Rc4 Ke8 26. Rfc2 Kd7 27. Bc1 g6 28. f4 f5 29. Re2 Re6 30. e5 h5
31. g3 Kc6 32. h3 Kd5 33. Rg2 Reb6 34. h4 Rb5 35. Rgc2 Bd8 36. Bd2 Bb6 37. Bc1
Bd8 {Shirov,A (2696)-Radjabov,T (2733) Riga 2013 1/2-1/2}) 8... c5 {[%emt 0:03:
39]} 9. Bd3 {[%emt 0:01:20]} cxd4 {[%emt 0:06:26]} 10. exd4 {[%emt 0:03:20]}
N7f6 {[%emt 0:05:04]} 11. O-O {[%emt 0:01:57]} Nxc3 $146 {[%emt 0:06:19]} (
11... b6 12. Qe2 Bb7 13. Rac1 Rc8 14. Ne5 Nxc3 15. bxc3 Qd5 16. Nf3 Ne4 17. c4
Nxg3 18. hxg3 Qd6 19. Rfd1 Rfd8 20. Be4 Bxe4 21. Qxe4 Bf6 22. g4 h6 23. Qe3 Qe7
24. Rc2 Rc7 25. Qb3 Qd7 26. Rdd2 Rdc8 27. a4 Qc6 28. Re2 Qd6 29. Re4 Qc6 30.
Ree2 Qd6 31. Re4 Rc6 32. a5 Qc7 33. axb6 axb6 34. Re3 Qf4 35. g5 hxg5 36. Qd3
g4 37. Ne5 Rd6 38. Re4 Qf5 39. Qe2 Rcd8 40. Rd2 g3 41. fxg3 {Korobov,A (2678)
-Macieja,B (2614) Lublin 2012 0-1 (99)}) 12. bxc3 {[%emt 0:00:10]} b6 {[%emt 0:
00:41]} 13. Qe2 {[%emt 0:05:34]} Bb7 {[%emt 0:04:19]} 14. Rfd1 {[%emt 0:02:07]}
g6 {[%emt 0:22:28]} (14... Rc8) 15. Rac1 {[%emt 0:21:30]} Nh5 {[%emt 0:11:35]}
16. c4 {[%emt 0:07:43]} Nxg3 {[%emt 0:03:53]} 17. hxg3 {[%emt 0:00:06]} Rc8 $15
{[%emt 0:04:42][%cal Gb7a6,Gc8c7,Gd8a8,Gf8c8] La paire de B est forte dans
cette position ouverte mais les P pendants ont un potentiel dynamique} 18. Be4
{[%emt 0:04:56]} Bxe4 {[%emt 0:02:17]} 19. Qxe4 {[%emt 0:00:08]} Bf6 {[%emt 0:
00:40]} 20. g4 {[%emt 0:11:59]} Qe7 {[%emt 0:03:15]} (20... Qc7 {[%cal Gf8d8]})
21. Qf4 {[%emt 0:01:29]} Rfd8 {[%emt 0:01:20]} 22. g3 {[%emt 0:02:39]} Bg7 {
[%emt 0:00:47]} 23. g5 {[%emt 0:00:20][%cal Gf3d2,Gd2e4,Ge4f6]} Qa3 {[%emt 0:
05:22]} 24. Kg2 $1 {[%emt 0:04:29] Jouant la contre-attaque plustôt que de
défendre la faiblesse "a2"} (24. Nd2 $5 Qxa2 25. Ne4 Rxc4 26. Nf6+ $44) 24...
Qxa2 {[%emt 0:03:21]} 25. Rh1 {[%emt 0:01:03][%csl Rh7][%cal Gf4h4]} Rxc4 {
[%emt 0:05:23]} 26. Ra1 {[%emt 0:00:52]} Qc2 {[%emt 0:01:02]} 27. Rxh7 $3 {
[%emt 0:00:41]} Qf5 $1 {[%emt 0:00:21]} (27... Kxh7 28. Qxf7 $18 {[%cal Ga1h1]}
) 28. Qh4 {[%emt 0:00:39]} Rc3 {[%emt 0:01:08]} 29. Ne5 {[%emt 0:06:37]} Bxe5 {
[%emt 0:00:37]} 30. dxe5 {[%emt 0:00:04]} Rxg3+ $3 {[%emt 0:01:26]} 31. Qxg3 {
[%emt 0:07:06]} (31. fxg3 Rd2+ 32. Kh1 Qe4+ 33. Kg1 Qg2#) 31... Kxh7 {[%emt 0:
00:02]} 32. Rxa7 {[%emt 0:00:12]} Kg7 {[%emt 0:00:09]} 33. Ra3 {[%emt 0:00:45]}
Rd4 {[%emt 0:02:22]} 34. Kf1 {[%emt 0:04:02]} Rg4 {[%emt 0:02:00] Une belle
partie!} 1/2-1/2

[Event "Sautron op 15th"]
[Site "Sautron"]
[Date "2015.10.24"]
[Round "9.5"]
[White "Swayams, Mishra"]
[Black "Ider, Borya"]
[Result "1/2-1/2"]
[ECO "D37"]
[WhiteElo "2444"]
[BlackElo "2464"]
[Annotator "RR"]
[PlyCount "114"]
[EventDate "2015.10.24"]
[EventType "swiss"]
[EventRounds "9"]
[EventCountry "FRA"]
[SourceTitle "CBM 169 Extra"]
[Source "ChessBase"]
[SourceDate "2015.12.18"]
[SourceVersion "1"]
[SourceVersionDate "2015.12.18"]
[SourceQuality "1"]
[TimeControl "40/5400+30:1800+30"]

1. c4 e6 2. Nc3 d5 3. d4 Nf6 4. Nf3 Nbd7 5. Bf4 dxc4 6. e3 b5 {Une ligne
secondaire} (6... Nd5) 7. Nxb5 Nd5 8. Nc3 Bb4 9. Rc1 (9. Qc2 N7b6 10. Bg3 O-O
11. Be2 c5 12. O-O cxd4 13. Nxd4 Bb7 14. Bf3 Qd7 {1/2-1/2 (14) Karjakin,S 
(2762)-Mamedyarov,S (2736) Baku 2015}) 9... N7b6 $146 (9... Nxf4 10. exf4 Qf6
11. g3 Bb7 12. Bg2 O-O 13. O-O Rfd8 14. Qc2 Rab8 15. Rfd1 Bxc3 16. Qxc3 Bd5 17.
Ne5 Bxg2 18. Kxg2 Nxe5 19. dxe5 Qe7 20. Qxc4 Rxd1 21. Rxd1 Rxb2 22. Qc6 h5 23.
Qa8+ Kh7 24. Rd8 Qb4 25. Kh3 Rxf2 26. Rh8+ Kg6 27. Qd8 f6 28. f5+ {1-0 (28) Bu,
X (2668)-Wang,C (2490) Xinghua 2012}) 10. Be2 Bb7 11. O-O Nxf4 $132 12. exf4
Qf6 {[%csl Rd4,Rf4]} 13. g3 Rd8 (13... O-O) 14. a3 Be7 15. Na4 h5 $5 16. Nxb6
axb6 17. Rxc4 h4 18. Rxc7 (18. Nxh4 $6 Rxh4) 18... Bd5 19. Ne5 Qh6 $36 20. Ng4
Qh7 21. Qc2 Be4 22. Qa4+ Kf8 23. Rxe7 $1 hxg3 (23... Kxe7 24. Qb4+ Kd7 25. Bb5+
$40) 24. fxg3 Qh3 25. Kf2 Kxe7 $13 {[%csl Re7,Rf2] Les deux K sont exposés}
26. Rc1 $6 (26. Qb4+ $142 $1 {[%csl Re7] Plus précis pour éviter de laisser
le temps au K Noir de fuir à l'aile-roi} Rd6 (26... Ke8 27. Bb5+) 27. Rc1 {
[%cal Gc1c7]}) 26... Kf8 27. Rc7 Qg2+ 28. Ke3 Bg6 29. Rd7 Rc8 30. Qa6 Qg1+ 31.
Kf3 (31. Kd2 Qc1#) 31... Qh1+ 32. Kf2 Qc6 33. Qb7 Qxb7 34. Rxb7 f5 35. Ne5
Rxh2+ 36. Ke3 Be8 37. Rxb6 {[%csl Ga3]} Rc2 38. Bc4 Rcg2 39. d5 (39. Bxe6 Rxg3+
40. Nf3 Rhh3 41. Bd5) 39... Rxg3+ 40. Kd4 exd5 41. Kxd5 $1 Rd2+ 42. Ke6 {
[%csl Ge6,Rf8][%cal Ge6f5,Gb6b8]} Rd8 43. Kxf5 Rh3 44. b3 Rh6 45. Rxh6 gxh6 46.
a4 Ra8 47. Kf6 $1 {[%csl Gf6]} h5 48. Kg5 Ra7 49. f5 Rg7+ 50. Ng6+ Bxg6 51.
fxg6 h4 52. Kxh4 (52. Bf7 Rxf7 $1) 52... Rxg6 53. a5 Ke8 54. a6 Rg7 55. Kh5 Kd8
56. Kh6 Rd7 57. Kg5 Kc7 1/2-1/2

[Event "Sautron op 14th"]
[Site "Sautron"]
[Date "2014.10.25"]
[Round "7"]
[White "Lagarde, Maxime"]
[Black "Terrieux, Kevin"]
[Result "1-0"]
[ECO "D37"]
[WhiteElo "2566"]
[BlackElo "2409"]
[Annotator "RR"]
[PlyCount "41"]
[EventDate "2014.10.26"]
[EventType "swiss"]
[EventRounds "9"]
[EventCountry "FRA"]
[SourceTitle "EXT 2015"]
[Source "ChessBase"]
[SourceDate "2014.11.20"]
[SourceVersion "1"]
[SourceVersionDate "2014.11.20"]
[SourceQuality "1"]
[TimeControl "40/5400+30:1800+30"]
[WhiteClock "0:28:24"]
[BlackClock "0:09:09"]

1. d4 {[%emt 0:00:00]} Nf6 {[%emt 0:00:28]} 2. c4 {[%emt 0:00:00]} e6 {[%emt 0:
00:22]} 3. Nf3 {[%emt 0:00:00]} d5 {[%emt 0:01:08]} 4. Nc3 {[%emt 0:00:00]} Be7
{[%emt 0:00:24]} 5. Bf4 {[%emt 0:00:54]} O-O {[%emt 0:01:57]} 6. e3 {[%emt 0:
00:05]} c5 {[%emt 0:03:24]} 7. dxc5 {[%emt 0:00:12]} Bxc5 {[%emt 0:00:12]} 8.
Qc2 {[%emt 0:02:10]} Nc6 {[%emt 0:10:54]} 9. Rd1 {[%emt 0:06:20]} (9. a3 Qa5
10. O-O-O $13) 9... Qa5 {[%emt 0:08:23]} 10. Be2 {[%emt 0:00:36]} (10. a3 $5 {
[%cal Gb2b4] Un coup d'attente utile} Be7 11. Be2) 10... dxc4 {[%emt 0:09:03]}
(10... Bb4 11. O-O Bxc3 12. bxc3 $14 {Gupta,A (2625)-Negi,P (2631) IND-chA
49th 2011 (13) 1/2}) 11. Bxc4 {[%emt 0:00:09]} a6 {[%emt 0:02:51][%cal Gb7b5]}
(11... Be7 12. O-O a6 13. a3 Nh5 14. Bd6 Bxd6 15. Rxd6 Rd8 16. Rxd8+ Qxd8 17.
Rd1 Qe7 18. Ne4 Nf6 19. Bd3 h6 20. Nd6 Nd5 21. Qc5 Qc7 22. Bb1 b6 23. Qc2 Qxd6
24. Qh7+ Kf8 25. Qh8+ Ke7 26. Qxg7 Bb7 27. e4 Qf4 28. exd5 Rd8 29. Ba2 exd5 30.
h3 Rd7 31. Rxd5 Rxd5 32. Bxd5 Nd8 33. Bxb7 Nxb7 34. Qc3 Nc5 35. Nd2 Qf6 36. Qb4
a5 37. Qb5 Kf8 38. Nc4 Qd4 39. Ne3 Ne6 40. Qe2 a4 41. Nf5 {Kovalenko,I (2650)
-Short,N (2665) Tromsoe 2014 1-0 (61)}) 12. O-O {[%emt 0:02:53]} b5 {[%emt 0:
02:21]} 13. Be2 {[%emt 0:07:56]} Nb4 {[%emt 0:11:12]} 14. Qb1 {[%emt 0:19:30]
Les Blancs sont sortis de la préparation} Nbd5 $146 {[%emt 0:04:44]} (14...
Qb6 15. Ng5 h6 16. Nge4 Nxe4 17. Nxe4 Nd5 18. Nxc5 Nxf4 19. exf4 Qxc5 20. Qe4
Rb8 21. Bd3 g6 22. Rc1 Qd5 23. Qxd5 exd5 24. Rfe1 Kg7 25. Rc7 Rb6 26. Ree7 Re6
27. f3 Kf6 28. Rxe6+ Kxe6 29. Kf2 Kd6 30. Ra7 Kc6 31. Re7 Kd6 32. Ra7 Kc6 33.
Re7 Bd7 34. b4 Kd6 35. Re2 a5 36. bxa5 Ra8 37. Bc2 Rxa5 38. Bb3 b4 39. Ke3 Ba4
40. Kd4 Bxb3 41. axb3 Ra1 42. Rc2 Rd1+ 43. Ke3 Rb1 44. Rc8 {Brondum,E (2175)
-Glud,J (2418) Obro 2006 0-1}) 15. Nxd5 {[%emt 0:03:48]} Nxd5 {[%emt 0:00:07]}
16. Ng5 $36 {[%emt 0:00:40]} g6 {[%emt 0:00:23][%csl Rf6,Rh6]} (16... Nf6 17.
Be5) 17. Bg3 {[%emt 0:02:13]} Bb7 {[%emt 0:04:42]} 18. Bf3 {[%emt 0:09:35]}
Rfd8 {[%emt 0:05:26] Les pièces Noires sont maintenant assez mal placées
pour défendre l'aile-roi} (18... Rac8 19. Ne4) 19. Rc1 {[%emt 0:11:06]} (19.
Qe4 {[%cal Ge4h4]}) 19... Qb6 {[%emt 0:17:20]} 20. Qe4 {[%emt 0:01:38]} Bf8 $2
{[%emt 0:05:30]} (20... Rd7 {[%cal Gd7f7,Ga8d8]}) 21. Bc7 $1 {[%emt 0:02:21]}
1-0

[Event "Sautron op 14th"]
[Site "Sautron"]
[Date "2014.11.01"]
[Round "9"]
[White "Barbot, Pierre"]
[Black "Ider, Borya"]
[Result "1-0"]
[ECO "D37"]
[WhiteElo "2446"]
[BlackElo "2392"]
[Annotator "RR"]
[PlyCount "65"]
[EventDate "2014.10.26"]
[EventType "swiss"]
[EventRounds "9"]
[EventCountry "FRA"]
[SourceTitle "EXT 2015"]
[Source "ChessBase"]
[SourceDate "2014.11.20"]
[SourceVersion "1"]
[SourceVersionDate "2014.11.20"]
[SourceQuality "1"]
[TimeControl "40/5400+30:1800+30"]

1. d4 d5 2. Nf3 Nf6 3. c4 e6 4. Nc3 Nbd7 5. Bf4 dxc4 6. e3 a6 {Changeant le
premier par rapport à la partie de la ronde 7} (6... Nb6 {Peric,S (2188)-Ider,
B (2394) Sautron op 14th 2014 (7.8) 0-1}) 7. Bxc4 (7. a4 Bd6 8. Bg5 h6 9. Bh4
b6 10. Bxc4 Bb7 11. O-O O-O 12. Qe2 Be7 13. Rfd1 Ne4 14. Nxe4 Bxh4 15. d5 e5
16. Nxh4 Qxh4 17. Ng3 g6 18. Rac1 Kg7 19. Bd3 Qd8 20. a5 Nf6 21. axb6 cxb6 22.
e4 Qd6 23. Nf1 b5 24. Nd2 Rfc8 25. Bb1 Nd7 26. Qe3 a5 27. g3 a4 28. h4 h5 29.
Nf3 b4 30. Bd3 Rxc1 31. Rxc1 a3 32. bxa3 bxa3 33. Ra1 Qb4 34. Qd2 Qb3 35. Rb1
Qa4 36. Qa2 Ba6 {Aronian,L (2797)-Wang,H (2710) Beijing 2014 1-0 (76)}) 7...
Bd6 $6 $146 (7... b5 8. Bb3 Bb7 9. O-O Be7 10. Qe2 c5 11. Rfd1 Qb6 12. e4 b4
13. dxc5 Nxc5 14. Na4 Qb5 15. Qxb5+ axb5 16. Nxc5 Bxc5 17. Rac1 Nxe4 18. Nd4
O-O 19. f3 Rfd8 20. Be5 Bxd4+ 21. Bxd4 Nf6 22. Bxf6 gxf6 23. Rxd8+ Rxd8 24. Rc5
Bd5 {1/2-1/2 (24) Marin,M (2549)-Rowson,J (2574) Porto Mannu 2013}) 8. Ne5 O-O
9. O-O b5 10. Qf3 $1 Nb6 11. Bb3 $14 Bd7 12. Rac1 b4 13. Ne4 Bb5 $2 (13... Nxe4
) 14. Bg5 $1 $40 Be7 (14... Bxf1 15. Nxf6+ gxf6 16. Bxf6 {[%cal Gf3g3]}) 15.
Bxf6 Bxf6 16. Nc6 Bxc6 17. Nxf6+ Qxf6 18. Qxf6 gxf6 19. Rxc6 $16 {[%csl Rb6,
Rc7,Gd4] La finale est difficile pour les Noirs} a5 20. a4 bxa3 21. bxa3 Rfc8
22. Rfc1 Rab8 (22... Ra7 23. Rxb6) 23. g3 Na8 24. Bd1 Rb5 25. Ra6 Nb6 26. a4
Rb2 $22 27. Rxa5 Nd5 28. Rb5 Rxb5 29. axb5 f5 30. Bf3 Rd8 31. Rc5 Rd7 32. Bxd5
Rxd5 33. Rxd5 1-0

[Event "Syre Memorial op 36th"]
[Site "Issy les Moulineaux"]
[Date "2013.05.12"]
[Round "7"]
[White "Nguyen, Chi Minh"]
[Black "Shirazi, Kamran"]
[Result "1-0"]
[ECO "D37"]
[WhiteElo "2365"]
[BlackElo "2411"]
[Annotator "Shirazi,K/Primel,D"]
[PlyCount "71"]
[EventDate "2013.05.08"]
[EventType "swiss"]
[EventRounds "7"]
[EventCountry "FRA"]
[SourceTitle "EXT 2015"]
[Source "ChessBase"]
[SourceDate "2014.11.20"]
[SourceVersion "1"]
[SourceVersionDate "2014.11.20"]
[SourceQuality "1"]
[TimeControl "40/5400+30:1200+30"]

1. d4 d5 2. c4 e6 3. Nf3 Nf6 4. Nc3 h6 {Une ligne secondaire} 5. a3 (5. Bf4
dxc4 (5... c6) (5... Be7 6. e3 c6 7. h3 Nbd7) 6. e3 Bd6 7. Bxc4 Bxf4 8. exf4
O-O 9. Ne5 Nc6 10. Nxc6 bxc6 11. O-O Qd6 12. Qd2 c5 13. Rfd1 Rd8 14. Nb5 Qc6
15. Qa5 Bb7 16. Bf1 Nd5 17. Qd2 a6 18. Nc3 Ne7 19. Ne2 cxd4 20. Nxd4 Qb6 21.
Qc3 Nd5 22. Qc1 c5 23. Nf3 Qb4 24. a3 Qxf4 25. Rxd5 {1-0 (25) Van Wely,L (2650)
-Epishin,V (2590) Ourense 2009}) (5. e3 c6 6. Bd3) 5... c5 (5... c6 6. cxd5
exd5 7. Qc2 Bd6 8. e3 O-O 9. Bd3 Re8 10. h3 Nbd7 11. O-O Qe7 12. Nd2 Nf8 13. e4
Ne6 14. e5 Nxd4 15. exd6 Nxc2 16. dxe7 Nxa1 17. b4 Ne4 18. Ndxe4 dxe4 19. Bxe4
Be6 20. Be3 {Alanic,X (2284)-Legky,N (2473) France 2008 1/2-1/2 (82)}) 6. dxc5
{[%cal Gb2b4,Gc1b2]} Bxc5 7. b4 $146 (7. e3 O-O 8. cxd5 exd5 9. Be2 Nc6 10. O-O
a6 11. b4 Ba7 12. b5 d4 13. bxc6 dxc3 14. Qb3 Qc7 15. Qxc3 Qxc6 16. Qxc6 bxc6
17. Bb2 Ne4 18. Rac1 c5 19. Rfd1 Bb6 20. Ne5 Re8 21. Bf3 Bf5 22. g4 Bh7 23. Rd7
Ra7 24. Rcd1 Rxd7 25. Rxd7 f6 26. Nc4 Re6 27. Rb7 Bd8 28. Rb8 Re8 29. Bxe4 {
1/2-1/2 (29) Magnier,H (2195)-Yacob,F (2270) France 1998}) 7... Bd6 8. Bb2 O-O
9. c5 Bc7 10. Nb5 Nbd7 11. e3 Bb8 {[%csl Ra8] Le manque de coordination entre
les R Noires va jouer ensuite un rôle dans la partie} 12. Nc3 Qe7 13. Be2 Rd8
14. O-O Nf8 15. Qc2 {44} e5 {54} 16. e4 dxe4 17. Nxe4 Bf5 18. Nxf6+ Qxf6 $11
19. Qc3 Ne6 (19... Bc7) 20. Bc4 Nf4 21. Rfd1 $32 (21. Qe3 {[%cal Ge3f4,Gb2f6]}
Bg4 {Shirazi}) 21... Bd3 22. Kh1 Qg6 $6 (22... Bxc4 {Plus simple}) 23. Nh4 Qh7
{[%csl Rh7]} 24. g3 Bc7 $13 {[%cal Ga8d8]} 25. gxf4 (25. Bxf7+ $5 {Aurait
évité la perte d'un P 2 coups plus tard}) 25... Qe4+ 26. f3 Qxc4 27. Qxc4
Bxc4 28. Bxe5 Rxd1+ (28... Bxe5 29. fxe5 Rxd1+ 30. Rxd1) 29. Rxd1 Rd8 30. Rxd8+
Bxd8 31. Nf5 f6 32. Bd6 a6 33. Kg2 Bd3 34. Nd4 {[%csl Rd8][%cal Gd4e6,Ge6d8]}
g5 $4 $138 (34... f5 $8 35. Ne6 Bf6) 35. Ne6 Bc4 36. Nxd8 1-0